bitfinex/quotes_ETHUSD_20250504
["timestamp","ask_amount","ask_price","bid_price","bid_amount"]
[1746352272244,4.80994499,1831.6,1831.5,5.46000546]
[1746352272447,4.80994499,1831.6,1831.5,7.06949811]
[1746352274110,4.80994499,1831.6,1831.5,1.60949265]
[1746352274316,4.80994499,1831.6,1831.4,19.96017514]
[1746352274944,4.80994499,1831.6,1831.4,25.42028844]
[1746352275151,4.80994499,1831.6,1831.4,22.66309141]
[1746352275755,4.80994499,1831.6,1831.4,28.12316611]
[1746352275945,4.80994499,1831.6,1831.5,7.06949811]
[1746352276255,0.21894499,1831.6,1831.5,7.89389811]
[1746352276551,5.3538,1831.9,1831.7,5.45934444]
[1746352276724,0.22387304,1831.8,1831.7,7.06883709]
[1746352277241,0.22387304,1831.8,1831.7,8.32168547]
[1746352277649,0.22387304,1831.8,1831.7,22.87627692]
[1746352277951,0.22387304,1831.8,1831.7,22.82168547]
[1746352278251,0.7648,1832.1,1831.8,5.45896364]
[1746352279018,10.04793866,1832.2,1831.8,5.45896364]
[1746352279226,4.59,1832.2,1831.8,14.564332]
[1746352279537,4.59,1832.2,1831.9,1.60949265]
[1746352279742,4.59,1832.2,1831.9,7.06830229]
[1746352279949,4.59,1832.2,1831.9,1.60949265]
[1746352280327,10.04803828,1832.2,1831.9,1.60949265]
[1746352280533,10.04803828,1832.2,1831.9,2.59914273]
[1746352281247,6.22314447,1832.1,1831.8,2.82806845]
[1746352281754,6.22316683,1832.1,1831.7,1.60949265]
[1746352282052,0.7648,1832.1,1831.9,14.5]
[1746352282423,0.7648,1832.1,1831.8,5.45910276]
[1746352283252,6.22302504,1832.1,1831.7,7.06874496]
[1746352283458,6.22302504,1832.1,1831.7,9.7715744]
[1746352283956,5.76443132,1832.0,1831.7,1.60949265]
[1746352284128,0.8231,1831.9,1831.6,19.95957882]
[1746352284528,0.8231,1831.9,1831.6,5.45957882]
[1746352285140,0.8231,1831.9,1831.6,10.97365804]
[1746352285331,0.8231,1831.9,1831.7,5.45934717]
[1746352287962,0.8231,1831.9,1831.5,21.56934168]
[1746352288168,0.8231,1831.9,1831.6,5.45947651]
[1746352288367,0.8231,1831.9,1831.5,24.10486079]
[1746352288535,0.30685555,1831.8,1831.5,21.56931662]
[1746352288739,5.76597879,1831.8,1831.5,16.10949265]
[1746352288941,0.7515,1831.6,1831.3,7.06987619]
[1746352289144,0.7515,1831.6,1831.4,5.46028528]
[1746352289454,0.7515,1831.6,1831.4,19.96028528]
[1746352289646,0.7515,1831.6,1831.4,22.66330143]
[1746352289843,4.589,1831.8,1831.5,5.46000546]
[1746352290045,5.3405,1831.8,1831.5,7.06949811]
[1746352290250,5.3405,1831.8,1831.5,1.60949265]
[1746352290451,0.30696287,1831.7,1831.5,1.60949265]
[1746352290774,0.22744906,1831.6,1831.5,7.06949811]
[1746352291246,0.53441193,1831.6,1831.5,7.06949811]
[1746352291775,0.53441193,1831.6,1831.5,1.60949265]
[1746352293875,0.53441193,1831.6,1831.5,7.88726758]
[1746352294036,0.53441193,1831.6,1831.5,7.85559811]
[1746352294244,0.53441193,1831.6,1831.5,7.91019363]
[1746352294539,0.53441193,1831.6,1831.5,22.35559811]
[1746352294751,0.22744906,1831.6,1831.5,22.35559811]
[1746352295073,4.589,1831.8,1831.7,5.45940929]
[1746352295239,4.589,1831.8,1831.7,7.06890194]
[1746352295441,0.30696979,1831.8,1831.7,7.06890194]
[1746352295641,0.30696979,1831.8,1831.7,8.3217602]
[1746352296173,0.30696979,1831.8,1831.7,2.86235091]
[1746352296471,0.30696979,1831.8,1831.7,7.06890194]
[1746352296778,0.30696979,1831.8,1831.7,1.60949265]
[1746352297963,0.30696979,1831.8,1831.7,7.06890194]
[1746352300172,0.30696979,1831.8,1831.7,1.60949265]
[1746352300676,1.11556979,1831.8,1831.6,14.5]
[1746352301038,1.11556979,1831.8,1831.3,7.88286412]
[1746352301243,0.30696979,1831.7,1831.4,5.46020364]
[1746352301645,0.30696979,1831.7,1831.4,19.96020364]
[1746352301983,0.30696979,1831.6,1831.4,19.96020364]
[1746352305148,0.30696979,1831.5,1831.4,19.96020364]
[1746352305782,0.53177789,1831.5,1831.4,19.96020364]
[1746352305948,0.53177789,1831.5,1831.4,21.46227616]
[1746352309180,0.53177789,1831.5,1831.4,16.00207252]
[1746352309386,0.53177789,1831.5,1831.4,19.96030359]
[1746352311281,0.53177789,1831.5,1831.4,14.5]
[1746352311489,0.53177789,1831.5,1831.4,19.96030359]
[1746352312812,0.53177789,1831.5,1831.4,20.71710359]
[1746352313578,0.30696979,1831.5,1831.4,20.71710359]
[1746352313899,0.53177789,1831.5,1831.4,20.71710359]
[1746352314382,0.53177789,1831.5,1831.4,23.64563708]
[1746352315992,0.30696979,1831.5,1831.4,23.64563708]
[1746352316155,0.53177789,1831.5,1831.4,23.64563708]
[1746352316492,0.2248081,1831.5,1831.4,23.64563708]
[1746352316990,0.2248081,1831.5,1831.4,19.96030359]
[1746352317189,10.85773591,1831.8,1831.4,19.96030359]
[1746352317392,0.22570214,1831.7,1831.4,19.96030359]
[1746352317886,5.68512718,1831.7,1831.4,14.5]
[1746352318190,0.30725317,1831.6,1831.4,19.96028193]
[1746352318390,0.2248081,1831.5,1831.4,19.96028193]
[1746352318591,0.2248081,1831.5,1831.4,5.46028193]
[1746352318786,0.53206127,1831.5,1831.4,5.46028193]
[1746352319089,0.53206127,1831.5,1831.4,7.08233155]
[1746352319593,0.2248081,1831.5,1831.4,7.08233155]
[1746352319885,5.3986,1831.8,1831.5,5.45997721]
[1746352320802,0.53297237,1831.7,1831.5,5.45997721]
[1746352321471,0.30727023,1831.6,1831.5,5.45997721]
[1746352321900,0.53252538,1831.6,1831.4,5.4601217]
[1746352322566,0.53252538,1831.6,1831.5,5.46000546]
[1746352322965,0.53252538,1831.6,1831.4,14.5]
[1746352323582,0.30727023,1831.5,1831.4,14.5]
[1746352323895,0.5238986,1831.5,1831.4,14.5]
[1746352325497,0.5238986,1831.5,1831.4,19.96030359]
[1746352325806,0.5238986,1831.5,1831.4,14.5]
[1746352326283,0.5238986,1831.5,1831.4,19.96030359]
[1746352327811,0.5238986,1831.5,1831.4,14.5]
[1746352329207,0.5238986,1831.5,1831.3,1.60949265]
[1746352329797,0.30727023,1831.4,1831.3,1.60949265]
[1746352329998,0.5230778,1831.4,1831.3,1.60949265]
[1746352330179,0.5230778,1831.4,1831.3,16.10949265]
[1746352330390,0.5230778,1831.4,1831.3,21.5700944]
[1746352330995,0.30727023,1831.4,1831.3,20.5700944]
[1746352331207,0.5231635,1831.4,1831.3,20.5700944]
[1746352332626,0.5231635,1831.4,1831.3,15.10949265]
[1746352332829,0.5231635,1831.4,1831.3,20.5700944]
[1746352333526,0.5231635,1831.4,1831.3,15.10949265]
[1746352334649,0.5231635,1831.4,1831.3,20.5700944]
[1746352335301,0.21589327,1831.4,1831.3,20.5700944]
[1746352335499,0.5234707,1831.4,1831.3,20.5700944]
[1746352335728,0.30757743,1831.4,1831.3,20.5700944]
[1746352335900,0.5234707,1831.4,1831.3,20.5700944]
[1746352337837,0.5234707,1831.4,1831.3,15.10949265]
[1746352339149,0.5234707,1831.4,1831.3,20.5700944]
[1746352345576,0.5234707,1831.4,1831.3,14.5]
[1746352346565,0.5234707,1831.4,1831.3,19.96060175]
[1746352347366,0.5234707,1831.4,1831.3,23.03271224]
[1746352347566,0.5234707,1831.4,1831.3,23.85001224]
[1746352347753,0.21589327,1831.4,1831.3,23.85001224]
[1746352348065,4.589,1831.7,1831.4,5.46008461]
[1746352348244,4.589,1831.7,1831.4,7.06957726]
[1746352348442,0.30754938,1831.6,1831.4,7.06957726]
[1746352349054,0.30754938,1831.6,1831.4,21.56957726]
[1746352349373,0.30754938,1831.5,1831.4,7.06957726]
[1746352351640,0.52432853,1831.5,1831.4,7.06957726]
[1746352352443,0.52432853,1831.5,1831.4,13.70239099]
[1746352353173,0.52432853,1831.5,1831.4,28.20239099]
[1746352353388,0.52432853,1831.5,1831.4,31.09007784]
[1746352353567,0.52432853,1831.5,1831.4,31.90737784]
[1746352353735,0.30754938,1831.5,1831.4,31.90737784]
[1746352353932,6.04,1831.9,1831.7,5.4593425]
[1746352354200,5.3491,1832.0,1831.9,5.45881325]
[1746352354439,5.3491,1832.0,1831.8,7.06838692]
[1746352354741,5.3491,1832.0,1831.8,1.60949265]
[1746352354968,5.3491,1832.0,1831.8,7.06843802]
[1746352355163,0.30738301,1831.9,1831.8,7.06843802]
[1746352358216,0.30738301,1831.9,1831.7,6.26048099]
[1746352358419,5.3491,1832.0,1831.7,5.45928099]
[1746352359392,5.3491,1832.0,1831.7,5.45920021]
[1746352359587,5.3491,1832.0,1831.7,5.45918224]
[1746352360216,0.30699712,1831.9,1831.7,5.45918224]
[1746352360830,0.30699712,1831.9,1831.6,10.75946045]
[1746352361037,0.30699712,1831.8,1831.6,10.75931324]
[1746352361238,0.30699712,1831.8,1831.6,16.21879256]
[1746352361547,0.30699712,1831.8,1831.7,5.45940929]
[1746352362438,0.30699712,1831.8,1831.6,16.21879457]
[1746352362642,0.30699712,1831.8,1831.7,5.45940929]
[1746352362804,5.3491,1832.0,1831.7,5.45940929]
[1746352363941,0.30697176,1831.9,1831.7,5.45940929]
[1746352364443,0.30697176,1831.8,1831.7,5.45940929]
[1746352364598,0.30697176,1831.8,1831.6,7.06909382]
[1746352364941,0.30697176,1831.8,1831.6,10.91899353]
[1746352365127,0.30697176,1831.8,1831.6,12.52848618]
[1746352365497,0.30697176,1831.8,1831.6,7.06897739]
[1746352365701,0.21939603,1831.7,1831.6,7.06897739]
[1746352366440,5.3491,1832.0,1831.7,5.45933549]
[1746352366740,0.22051363,1831.9,1831.7,5.45933549]
[1746352367942,0.30699228,1831.8,1831.7,5.45933549]
[1746352368464,0.52705909,1831.8,1831.7,5.45933549]
[1746352368826,0.52705909,1831.8,1831.7,19.95933549]
[1746352372550,0.52705909,1831.8,1831.7,20.75853549]
[1746352372764,0.52705909,1831.8,1831.7,18.08195129]
[1746352372935,0.52705909,1831.8,1831.7,15.2992]
[1746352373151,0.22006681,1831.8,1831.7,15.2992]
[1746352373470,5.45852454,1832.0,1831.7,15.2992]
[1746352373767,6.48566814,1831.9,1831.7,14.5]
[1746352374557,11.94475445,1831.9,1831.6,1.60949265]
[1746352374838,11.94475436,1831.9,1831.6,1.60949265]
[1746352375038,0.30714007,1831.8,1831.6,16.10949265]
[1746352375238,0.21961995,1831.7,1831.6,16.10949265]
[1746352376059,6.26515451,1831.9,1831.6,16.10949265]
[1746352376263,0.22006681,1831.8,1831.6,16.10949265]
[1746352376556,0.22006681,1831.8,1831.7,0.05459201]
[1746352376774,0.22006681,1831.8,1831.7,6.2872013]
[1746352376950,5.45839114,1832.1,1831.7,6.2872013]
[1746352377439,0.22096039,1832.0,1831.7,6.2872013]
[1746352377639,0.52822253,1832.0,1831.7,6.23260929]
[1746352377967,0.52822253,1832.0,1831.8,15.12326093]
[1746352378352,0.52822253,1832.0,1831.8,16.73275358]
[1746352378752,0.30726214,1831.9,1831.8,16.73275358]
[1746352379051,0.52844863,1831.9,1831.8,16.73275358]
[1746352379380,0.52844863,1831.9,1831.8,15.12326093]
[1746352379544,0.52844863,1831.9,1831.8,16.73275358]
[1746352380582,0.52844863,1831.9,1831.8,22.19186483]
[1746352381481,0.52844863,1831.9,1831.8,16.73275358]
[1746352381660,0.52844863,1831.9,1831.8,14.5]
[1746352381863,5.98726188,1831.9,1831.8,14.5]
[1746352382060,5.98726188,1831.9,1831.6,5.29983078]
[1746352382393,0.22118649,1831.9,1831.8,8.67809655]
[1746352382593,6.28507135,1832.7,1832.3,0.8309]
[1746352382766,5.4567555,1832.6,1832.3,2.44039265]
[1746352382969,5.64267657,1832.6,1832.3,14.5]
[1746352383302,5.4570566,1832.5,1832.3,14.5]
[1746352383600,6.28582372,1832.4,1832.3,14.5]
[1746352383889,6.47098094,1832.4,1832.3,14.5]
[1746352384314,1.01365722,1832.4,1832.3,14.5]
[1746352384658,0.18515722,1832.4,1832.3,14.5]
[1746352384858,16.90931301,1832.6,1832.3,14.5]
[1746352385070,0.18551811,1832.5,1832.2,7.84839338]
[1746352385698,0.18551811,1832.5,1832.2,22.34839338]
[1746352387213,16.90931301,1832.6,1832.2,22.34839338]
[1746352387386,11.4525,1832.6,1832.2,22.34839338]
[1746352387576,0.18551811,1832.5,1832.2,22.34839338]
[1746352387775,0.18551811,1832.5,1832.2,25.1290537]
[1746352389817,0.18551811,1832.5,1832.2,19.67115297]
[1746352390113,0.18551811,1832.5,1832.2,25.12907149]
[1746352390519,0.18551811,1832.5,1832.2,25.12885029]
[1746352392791,0.18551811,1832.5,1832.2,25.12883707]
[1746352393131,0.18551811,1832.5,1832.3,2.51288371]
[1746352393546,0.18551811,1832.5,1832.4,7.12138833]
[1746352393952,0.18551811,1832.5,1832.4,7.87998833]
[1746352394635,0.18551811,1832.5,1832.4,7.82541637]
[1746352394841,0.18551811,1832.5,1832.3,2.51288371]
[1746352395936,0.18551811,1832.5,1832.4,1.60949265]
[1746352396246,0.18551811,1832.5,1832.4,2.56749089]
[1746352397314,0.18551811,1832.5,1832.4,0.95799824]
[1746352399853,0.18551811,1832.5,1832.4,15.45799824]
[1746352400352,5.64254403,1832.5,1832.4,14.5]
[1746352400665,0.18551811,1832.5,1832.4,14.5]
[1746352400952,0.18551811,1832.5,1832.2,0.8105]
[1746352401153,0.7593,1832.4,1832.1,5.45805411]
[1746352401358,0.7593,1832.4,1832.2,0.54580541]
[1746352401565,0.18805958,1832.3,1832.2,15.04580541]
[1746352402048,0.18805958,1832.3,1832.2,20.50370667]
[1746352402228,16.25701797,1832.6,1832.2,20.50370667]
[1746352402431,0.18895255,1832.5,1832.2,20.50370667]
[1746352402631,5.64599923,1832.5,1832.2,15.04580541]
[1746352404448,5.64599923,1832.5,1832.2,20.50366212]
[1746352404449,0.18895255,1832.5,1832.2,20.50366212]
[1746352405723,0.18895255,1832.5,1832.3,8.39160239]
[1746352406222,0.18895255,1832.5,1832.3,8.33702781]
[1746352407462,0.18895255,1832.5,1832.3,2.05036621]
[1746352408369,0.18895255,1832.5,1832.2,20.50366212]
[1746352410172,0.18895255,1832.5,1832.2,20.50351351]
[1746352410370,0.18895255,1832.5,1832.3,5.51218595]
[1746352410875,0.18895255,1832.5,1832.4,0.7614]
[1746352412267,0.49625251,1832.5,1832.4,0.7614]
[1746352413572,0.49625251,1832.5,1832.4,7.75356633]
[1746352414576,0.49625251,1832.5,1832.4,6.27329242]
[1746352414774,0.49625251,1832.5,1832.4,20.77329242]
[1746352415081,0.49625251,1832.5,1832.4,20.71872372]
[1746352416079,0.49625251,1832.5,1832.4,15.2614]
[1746352416869,0.49625251,1832.5,1832.4,20.71872372]
[1746352417178,0.49625251,1832.5,1832.4,22.79059609]
[1746352418380,0.49625251,1832.5,1832.4,17.33327237]
[1746352418583,0.18895255,1832.5,1832.4,17.33327237]
[1746352418945,6.22910953,1832.8,1832.4,22.79059047]
[1746352419146,0.1730334,1832.7,1832.4,22.79059047]
[1746352419346,0.1730334,1832.7,1832.5,2.27905905]
[1746352419546,0.3072445,1832.6,1832.5,2.27905905]
[1746352420044,0.47983154,1832.6,1832.5,2.27905905]
[1746352422295,0.47983154,1832.6,1832.3,6.25792869]
[1746352422495,5.93663981,1832.6,1832.3,0.8005]
[1746352422863,0.3072445,1832.5,1832.3,0.8005]
[1746352423063,0.17169417,1832.4,1832.3,0.8005]
[1746352423302,0.17169417,1832.4,1832.3,15.3005]
[1746352423482,0.17169417,1832.4,1832.3,17.43091089]
[1746352423688,0.17169417,1832.4,1832.3,22.88853245]
[1746352423888,5.45662384,1832.7,1832.3,22.88853245]
[1746352424086,0.1730697,1832.6,1832.3,22.88853245]
[1746352424273,5.45662384,1832.7,1832.3,22.88853245]
[1746352424590,0.1730697,1832.6,1832.3,22.88853245]
[1746352424753,0.1730697,1832.6,1832.4,2.28885324]
[1746352424958,5.45662384,1832.7,1832.4,2.28885324]
[1746352425158,0.17262329,1832.5,1832.4,2.28885324]
[1746352425358,0.30726986,1832.6,1832.4,2.28885324]
[1746352425660,0.17262329,1832.5,1832.4,2.28885324]
[1746352426391,0.17262329,1832.5,1832.3,8.4431008]
[1746352426694,0.17262329,1832.5,1832.4,14.5]
[1746352427489,5.45662384,1832.7,1832.4,14.5]
[1746352427690,0.1730697,1832.6,1832.4,14.5]
[1746352427993,5.45662384,1832.7,1832.4,14.5]
[1746352428202,0.17262329,1832.5,1832.4,16.78885324]
[1746352428490,0.17262329,1832.5,1832.4,22.24604314]
[1746352428903,0.17288011,1832.5,1832.4,22.24604314]
[1746352429196,6.22904727,1832.8,1832.4,22.24604314]
[1746352429359,0.17313691,1832.5,1832.4,16.78885324]
[1746352429566,6.22911017,1832.8,1832.4,22.2460919]
[1746352429760,0.1732225,1832.5,1832.4,22.2460919]
[1746352429977,6.22911017,1832.8,1832.4,22.2460919]
[1746352430171,0.17389818,1832.5,1832.4,22.2460919]
[1746352430402,0.30719032,1832.7,1832.4,22.2460919]
[1746352430716,0.30719032,1832.7,1832.5,2.22460919]
[1746352431102,5.45631017,1832.8,1832.4,7.80065727]
[1746352431309,5.45631017,1832.8,1832.5,14.5]
[1746352432103,0.30716427,1832.7,1832.5,14.5]
[1746352432790,5.76359509,1832.7,1832.5,14.5]
[1746352432962,0.30716427,1832.6,1832.5,14.5]
[1746352433380,0.30716427,1832.6,1832.4,2.28885324]
[1746352433576,0.30716427,1832.6,1832.3,4.49083813]
[1746352433778,0.30716427,1832.5,1832.3,9.94835965]
[1746352433983,0.30716427,1832.5,1832.4,14.5]
[1746352435616,6.28293439,1832.7,1832.4,14.5]
[1746352436514,0.30727234,1832.6,1832.4,14.5]
[1746352436717,0.30727234,1832.6,1832.4,16.57580215]
[1746352437593,5.45653439,1832.7,1832.4,16.57580215]
[1746352439231,5.45676791,1832.6,1832.4,16.57580215]
[1746352439531,0.30736051,1832.5,1832.4,14.5]
[1746352440727,0.47910801,1832.5,1832.4,14.5]
[1746352441539,0.47910801,1832.5,1832.4,15.2806]
[1746352443345,0.1717475,1832.5,1832.4,15.2806]
[1746352443513,5.45659909,1832.7,1832.4,15.2806]
[1746352443714,0.17219388,1832.6,1832.4,15.2806]
[1746352443897,5.45659909,1832.7,1832.4,17.35440093]
[1746352444097,0.17219388,1832.6,1832.4,17.35440093]
[1746352444313,5.45659909,1832.7,1832.4,17.35440093]
[1746352444514,0.17219388,1832.6,1832.4,22.81170316]
[1746352444812,5.45630666,1832.8,1832.4,22.81167927]
[1746352445014,0.1717475,1832.5,1832.4,22.81167927]
[1746352445202,5.45630666,1832.8,1832.4,22.81167927]
[1746352445404,0.1717475,1832.5,1832.4,22.81167927]
[1746352445906,5.45630666,1832.8,1832.4,22.81167927]
[1746352446136,0.17264022,1832.7,1832.4,22.81167927]
[1746352447420,0.30740041,1832.6,1832.4,22.81167927]
[1746352447825,0.1717475,1832.5,1832.4,22.81167927]
[1746352448496,10.91268941,1832.8,1832.4,22.81167927]
[1746352448711,0.17264022,1832.7,1832.4,22.81167927]
[1746352449228,5.62919372,1832.7,1832.4,17.35440093]
[1746352449534,5.62919372,1832.7,1832.4,15.2806]
[1746352450243,0.30739147,1832.6,1832.4,15.2806]
[1746352450596,0.1717475,1832.5,1832.4,15.2806]
[1746352451530,5.4565535,1832.7,1832.4,15.2806]
[1746352451730,0.1724513,1832.6,1832.4,15.2806]
[1746352451929,5.45632462,1832.8,1832.4,23.18072863]
[1746352452129,0.17289764,1832.7,1832.4,23.18072863]
[1746352453133,0.17289764,1832.7,1832.4,17.72343567]
[1746352453430,0.30741514,1832.6,1832.4,17.72343567]
[1746352453801,0.17200491,1832.5,1832.4,17.72343567]
[1746352454308,5.45643678,1832.7,1832.4,17.72343567]
[1746352454517,0.1724513,1832.6,1832.4,23.18075784]
[1746352454733,5.45643678,1832.7,1832.4,23.18075784]
[1746352454936,0.1724513,1832.6,1832.4,23.18075784]
[1746352455140,5.45643678,1832.7,1832.4,23.18075784]
[1746352455306,0.1724513,1832.6,1832.4,23.18075784]
[1746352455644,5.45633085,1832.8,1832.4,23.18075784]
[1746352455835,0.17200491,1832.5,1832.4,23.18075784]
[1746352455998,0.30744822,1832.7,1832.4,23.18075784]
[1746352456202,0.17200491,1832.5,1832.4,23.18075784]
[1746352456702,5.45633085,1832.8,1832.4,23.18075784]
[1746352456921,0.17289764,1832.7,1832.5,5.45698614]
[1746352457132,10.83318312,1832.9,1832.4,8.68058922]
[1746352457337,0.17334393,1832.8,1832.5,5.45697597]
[1746352457541,10.83318312,1832.9,1832.5,19.95697597]
[1746352457724,0.17334393,1832.8,1832.5,19.95697597]
[1746352457924,0.30741807,1832.8,1832.5,19.95697597]
[1746352458132,0.17289764,1832.7,1832.5,22.03073357]
[1746352458438,0.17289764,1832.7,1832.5,22.03057452]
[1746352458735,0.17289764,1832.7,1832.6,5.51129333]
[1746352459139,11.49554474,1833.0,1832.6,5.51129333]
[1746352459305,0.17467907,1832.9,1832.6,5.51129333]
[1746352459505,0.17467907,1832.9,1832.7,0.55112933]
[1746352460941,0.30725894,1832.8,1832.7,0.55112933]
[1746352461104,0.48166295,1832.8,1832.7,0.55112933]
[1746352461304,0.30725894,1832.8,1832.7,0.55112933]
[1746352462046,0.48243485,1832.8,1832.7,0.55112933]
[1746352462839,1.29313485,1832.8,1832.7,0.55112933]
[1746352463040,1.29313485,1832.8,1832.6,14.5]
[1746352463345,0.98587591,1832.8,1832.6,14.5]
[1746352463837,0.98587591,1832.8,1832.5,11.22096485]
[1746352464139,0.98587591,1832.8,1832.5,25.72096485]
[1746352464633,0.98587591,1832.8,1832.5,25.72089177]
[1746352464936,0.98587591,1832.8,1832.6,2.57208918]
[1746352465941,0.30718074,1832.7,1832.6,2.57208918]
[1746352466104,0.48182481,1832.7,1832.6,2.62665044]
[1746352467110,0.17464407,1832.7,1832.6,2.62665044]
[1746352467711,6.26673569,1832.9,1832.6,2.62665044]
[1746352467912,0.17526148,1832.8,1832.6,2.62665044]
[1746352468250,6.26673569,1832.9,1832.6,2.62665044]
[1746352468444,6.44194563,1832.7,1832.6,0.05456126]
[1746352468650,6.26713683,1832.7,1832.4,3.69033813]
[1746352468939,6.44169532,1832.7,1832.5,14.5]
[1746352469303,0.30718785,1832.6,1832.5,14.5]
[1746352469508,0.48130003,1832.6,1832.5,16.31903381]
[1746352475165,0.48130003,1832.6,1832.3,3.69033813]
[1746352475166,5.63084032,1832.6,1832.3,3.69033813]
[1746352475460,0.48136351,1832.6,1832.3,9.20231784]
[1746352475625,0.48136351,1832.6,1832.4,14.5]
[1746352476030,0.17411218,1832.6,1832.4,14.5]
[1746352476557,0.17366582,1832.5,1832.4,14.5]
[1746352476760,6.22916305,1832.7,1832.4,16.86477498]
[1746352476971,0.17411218,1832.6,1832.4,16.86477498]
[1746352477144,6.22916305,1832.7,1832.4,16.86477498]
[1746352477471,6.22736162,1833.3,1832.8,5.45613269]
[1746352477765,6.22735122,1833.3,1833.0,0.7874]
[1746352478464,0.30713851,1833.2,1833.0,0.7874]
[1746352478636,0.30713851,1833.2,1832.9,14.5]
[1746352478836,5.45577337,1833.0,1832.5,3.8139]
[1746352479049,5.45577337,1833.0,1832.6,0.05455884]
[1746352479250,5.76307344,1832.9,1832.7,14.5]
[1746352479772,0.30713851,1832.9,1832.7,14.5]
[1746352479966,5.45570923,1833.0,1832.7,16.49566885]
[1746352479967,0.30713851,1832.8,1832.7,16.49566885]
[1746352480346,0.30713851,1832.8,1832.7,21.95209925]
[1746352481049,6.2670495,1833.1,1832.7,21.95209925]
[1746352481251,5.4557099,1833.0,1832.7,14.5]
[1746352481745,0.30701408,1832.9,1832.7,14.5]
[1746352482439,5.4557099,1833.0,1832.7,14.5]
[1746352483267,6.26708935,1833.1,1832.7,19.9563958]
[1746352483970,5.76265217,1833.0,1832.7,14.5]
[1746352484769,0.30700253,1832.9,1832.7,14.5]
[1746352484954,0.30700253,1832.9,1832.7,16.53592589]
[1746352485159,0.12825105,1832.8,1832.7,16.53592589]
[1746352485466,0.30700253,1832.8,1832.7,16.53592589]
[1746352485662,0.43525358,1832.8,1832.7,16.53592589]
[1746352485835,0.43525358,1832.8,1832.7,14.5]
[1746352486458,0.43525358,1832.8,1832.5,12.96121837]
[1746352487043,5.89150004,1832.8,1832.5,4.50423813]
[1746352487243,5.89150004,1832.8,1832.5,3.69033813]
[1746352487457,11.34790046,1832.8,1832.5,3.69033813]
[1746352487769,5.45644548,1832.7,1832.5,3.69033813]
[1746352487980,0.12735839,1832.6,1832.5,3.69033813]
[1746352488134,6.52604801,1832.7,1832.5,3.69033813]
[1746352488534,0.12727279,1832.6,1832.5,3.69033813]
[1746352488853,6.53893067,1832.6,1832.5,3.69033813]
[1746352489070,6.66620346,1832.6,1832.5,3.69033813]
[1746352489352,6.66620346,1832.6,1832.4,3.69033813]
[1746352489775,6.66620833,1832.6,1832.4,3.69033813]
[1746352490568,6.3592058,1832.6,1832.4,3.69033813]
[1746352492587,5.76396799,1832.5,1832.4,3.69033813]
[1746352492890,5.88989126,1832.5,1832.4,3.69033813]
[1746352493062,5.88989126,1832.5,1832.2,18.19033813]
[1746352493249,5.88989126,1832.5,1832.3,1.81903381]
[1746352493587,5.58294919,1832.5,1832.3,1.81903381]
[1746352493756,5.58294919,1832.5,1832.2,3.69033813]
[1746352493964,5.58294919,1832.5,1832.3,14.5]
[1746352496258,5.45732372,1832.4,1832.3,14.5]
[1746352496590,0.12515421,1832.4,1832.3,14.5]
[1746352497089,0.12515421,1832.4,1832.1,13.30681039]
[1746352497289,5.58258858,1832.4,1832.2,1.33068104]
[1746352497456,5.58258858,1832.4,1832.1,4.84865921]
[1746352497751,5.58258858,1832.4,1832.2,14.5]
[1746352499989,5.58258858,1832.4,1832.1,4.44173813]
[1746352500368,5.58258858,1832.4,1832.1,15.2514]
[1746352500567,5.45762482,1832.3,1832.1,14.5]
[1746352500819,0.12426115,1832.2,1832.1,14.5]
[1746352500979,5.45821734,1832.1,1832.0,3.69033813]
[1746352501293,5.58135434,1832.1,1832.0,3.69033813]
[1746352501494,5.45940929,1831.7,1831.6,0.7772]
[1746352501802,5.45970735,1831.6,1831.5,8.71736561]
[1746352501978,5.57824811,1831.6,1831.5,23.21736561]
[1746352502178,0.11854076,1831.6,1831.5,23.21736561]
[1746352502992,5.57824811,1831.6,1831.5,23.21736561]
[1746352503196,5.57824811,1831.6,1831.5,8.71736561]
[1746352503862,0.11854076,1831.6,1831.5,8.71736561]
[1746352504700,0.11854076,1831.6,1831.3,5.46039271]
[1746352504862,0.11854076,1831.6,1831.2,6.64504492]
[1746352505064,0.11854076,1831.6,1831.2,7.85565574]
[1746352505266,5.57828865,1831.6,1831.2,7.85565574]
[1746352505464,0.11854076,1831.6,1831.3,5.46056749]
[1746352505707,0.11854076,1831.6,1831.5,6.27070546]
[1746352506011,10.617,1832.1,1831.8,5.45898851]
[1746352506199,10.617,1832.1,1831.8,6.26968851]
[1746352506200,0.12032814,1832.0,1831.8,6.26968851]
[1746352506401,0.12032814,1832.0,1831.8,7.44259501]
[1746352506717,0.12032814,1832.0,1831.8,1.9836065]
[1746352506916,0.12032814,1832.0,1831.9,5.45881325]
[1746352507210,0.12032814,1832.0,1831.8,7.497153]
[1746352507610,0.12032814,1832.0,1831.9,0.7497153]
[1746352508099,0.12032814,1832.0,1831.8,7.44249321]
[1746352509006,5.45793871,1832.2,1831.8,7.44270891]
[1746352509303,5.45822366,1832.1,1831.7,3.0]
[1746352509508,5.45855064,1832.0,1831.7,3.0]
[1746352509920,0.11775043,1831.9,1831.7,3.0]
[1746352510476,5.45855602,1832.0,1831.7,3.0]
[1746352510999,5.45895334,1831.9,1831.5,8.459848]
[1746352511315,5.4595403,1831.7,1831.3,5.46042088]
[1746352511484,6.21542126,1831.8,1831.4,8.46025655]
[1746352511675,0.11634617,1831.6,1831.4,8.46025655]
[1746352511875,6.21541837,1831.8,1831.4,8.46025655]
[1746352512102,0.1158992,1831.5,1831.4,9.85233861]
[1746352512304,5.45952975,1831.7,1831.4,4.39208206]
[1746352512590,0.11634617,1831.6,1831.4,4.39208206]
[1746352512801,6.21558218,1831.8,1831.4,8.46028477]
[1746352513003,0.11679308,1831.7,1831.4,8.46028477]
[1746352514336,0.11679308,1831.7,1831.4,3.0]
[1746352515002,0.11679308,1831.7,1831.4,8.46022018]
[1746352516623,0.11679308,1831.7,1831.5,0.7981]
[1746352516805,0.11679308,1831.7,1831.4,9.25832018]
[1746352517707,0.11679308,1831.7,1831.4,3.85269758]
[1746352517908,0.11679308,1831.7,1831.4,9.3129336]
[1746352518519,0.11679308,1831.7,1831.4,3.85269758]
[1746352518711,6.38923939,1831.7,1831.4,3.0]
[1746352520527,5.45972474,1831.6,1831.4,3.0]
[1746352520733,6.38929295,1831.7,1831.4,3.0]
[1746352523004,0.92969308,1831.7,1831.4,3.0]
[1746352523503,6.38916447,1831.7,1831.4,3.0]
[1746352524433,6.38910661,1831.7,1831.4,3.0]
[1746352528138,6.38910661,1831.7,1831.4,8.46030178]
[1746352529103,0.92969308,1831.7,1831.4,8.46030178]
[1746352529434,6.38911168,1831.7,1831.4,3.0]
[1746352531840,0.92969308,1831.7,1831.4,8.46029069]
[1746352532136,5.45983422,1831.6,1831.2,2.41580936]
[1746352532339,5.45983422,1831.6,1831.2,6.66597971]